[Event "*** Titled Tuesday 3|2 Blitz"]
[Site "Chess.com"]
[Date "2015.12.01"]
[Round "4"]
[White "Tirantes"]
[Black "stepanosinovsky"]
[Result "0-1"]
[WhiteElo "2198"]
[BlackElo "2208"]
[TimeControl "180+2"]
[EndTime "11:50:19 PST"]
[Termination "stepanosinovsky won on time"]

1. Nf3 {[%clk 0:03:01.9]} 1... b6 {[%clk 0:03:01.9]} 2. e4 {[%clk 0:02:59.6]}
2... Bb7 {[%clk 0:03:03.8]} 3. d3 {[%clk 0:02:58.8]} 3... e6 {[%clk 0:03:05.7]}
4. g3 {[%clk 0:02:57]} 4... d5 {[%clk 0:03:04]} 5. Nbd2 {[%clk 0:02:54.2]} 5...
dxe4 {[%clk 0:03:03.9]} 6. Nxe4 {[%clk 0:02:49.7]} 6... Nf6 {[%clk 0:02:58.6]}
7. Nxf6+ {[%clk 0:02:42.7]} 7... gxf6 {[%clk 0:02:28.4]} 8. Bg2 {[%clk
0:02:41.6]} 8... Nc6 {[%clk 0:02:28.4]} 9. O-O {[%clk 0:02:36.7]} 9... Qd7
{[%clk 0:02:28.6]} 10. a4 {[%clk 0:02:25.5]} 10... O-O-O {[%clk 0:02:17.5]} 11.
a5 {[%clk 0:02:24]} 11... Nxa5 {[%clk 0:02:18]} 12. Bd2 {[%clk 0:02:03.8]} 12...
Nc6 {[%clk 0:02:17.6]} 13. Bc3 {[%clk 0:02:03.8]} 13... Be7 {[%clk 0:02:10.5]}
14. Re1 {[%clk 0:02:03.8]} 14... h5 {[%clk 0:01:48.6]} 15. b4 {[%clk 0:01:58.6]}
15... h4 {[%clk 0:01:12.8]} 16. b5 {[%clk 0:01:56.5]} 16... hxg3 {[%clk
0:01:13.2]} 17. hxg3 {[%clk 0:01:40.5]} 17... Na5 {[%clk 0:00:38.6]} 18. Bxa5
{[%clk 0:01:38.1]} 18... bxa5 {[%clk 0:00:39.7]} 19. Rxa5 {[%clk 0:01:36.4]}
19... Bc5 {[%clk 0:00:40.8]} 20. Qa1 {[%clk 0:01:25.4]} 20... Qd6 {[%clk
0:00:19.7]} 21. Rxa7 {[%clk 0:00:52.4]} 21... Qxg3 {[%clk 0:00:17.2]} 22. d4
{[%clk 0:00:31.9]} 22... Qxg2+ {[%clk 0:00:10.6]} 23. Kxg2 {[%clk 0:00:30.2]}
23... Rdg8+ {[%clk 0:00:12.1]} 24. Kf1 {[%clk 0:00:27]} 24... Bxf3 {[%clk
0:00:13.8]} 25. Ra8+ {[%clk 0:00:15.3]} 25... Kd7 {[%clk 0:00:11.7]} 26. Rxg8
{[%clk 0:00:15.7]} 26... Rxg8 {[%clk 0:00:12.2]} 27. Re3 {[%clk 0:00:14.2]}
27... Rh8 {[%clk 0:00:10.5]} 28. Rxf3 {[%clk 0:00:11.4]} 28... Rh1+ {[%clk
0:00:11.2]} 29. Ke2 {[%clk 0:00:12.1]} 29... Rxa1 {[%clk 0:00:12.8]} 30. dxc5
{[%clk 0:00:12.9]} 30... f5 {[%clk 0:00:11.2]} 31. Kd3 {[%clk 0:00:13.3]} 31...
Rb1 {[%clk 0:00:12.1]} 32. Kc4 {[%clk 0:00:13.2]} 32... Rb2 {[%clk 0:00:11]} 33.
Rd3+ {[%clk 0:00:13.2]} 33... Kc8 {[%clk 0:00:11.6]} 34. Rd2 {[%clk 0:00:13.2]}
34... Rb1 {[%clk 0:00:12.5]} 35. c6 {[%clk 0:00:13.7]} 35... Kb8 {[%clk
0:00:12.1]} 36. Rd7 {[%clk 0:00:12.6]} 36... Rf1 {[%clk 0:00:09]} 37. Rd8+
{[%clk 0:00:14.5]} 37... Ka7 {[%clk 0:00:09.9]} 38. Rb8 {[%clk 0:00:16.3]} 38...
Rxf2 {[%clk 0:00:10.5]} 39. Rc8 {[%clk 0:00:17.9]} 39... Kb6 {[%clk 0:00:11.4]}
40. Rxc7 {[%clk 0:00:19.8]} 40... Kxc7 {[%clk 0:00:12.2]} 41. c3 {[%clk
0:00:11.4]} 41... Kb6 {[%clk 0:00:11.9]} 0-1

[Event "*** Titled Tuesday 3|2 Blitz"]
[Site "Chess.com"]
[Date "2015.12.01"]
[Round "4"]
[White "swayamsm"]
[Black "Krutoy123"]
[Result "1-0"]
[WhiteElo "2422"]
[BlackElo "2333"]
[TimeControl "180+2"]
[EndTime "11:50:21 PST"]
[Termination "swayamsm won on time"]

1. d4 {[%clk 0:03:01.9]} 1... Nf6 {[%clk 0:02:58.9]} 2. c4 {[%clk 0:03:00.1]}
2... e6 {[%clk 0:02:59.2]} 3. Nc3 {[%clk 0:02:59.4]} 3... Bb4 {[%clk 0:02:58.3]}
4. e3 {[%clk 0:02:59.3]} 4... O-O {[%clk 0:02:58.9]} 5. Ne2 {[%clk 0:02:59.7]}
5... d5 {[%clk 0:02:59.1]} 6. a3 {[%clk 0:03:00.5]} 6... Be7 {[%clk 0:03:00.4]}
7. cxd5 {[%clk 0:02:57.2]} 7... exd5 {[%clk 0:03:02.3]} 8. h3 {[%clk 0:02:57.1]}
8... c6 {[%clk 0:03:03.5]} 9. g4 {[%clk 0:02:57.2]} 9... Ne8 {[%clk 0:03:02.3]}
10. Bg2 {[%clk 0:02:56.9]} 10... Nd6 {[%clk 0:03:03.6]} 11. O-O {[%clk
0:02:54.9]} 11... h5 {[%clk 0:03:02.7]} 12. gxh5 {[%clk 0:02:50.4]} 12... Bf5
{[%clk 0:03:03.5]} 13. Ng3 {[%clk 0:02:47.9]} 13... Bh7 {[%clk 0:03:03.9]} 14.
e4 {[%clk 0:02:26.4]} 14... dxe4 {[%clk 0:03:04.1]} 15. Ncxe4 {[%clk 0:02:22.3]}
15... Nxe4 {[%clk 0:03:04.2]} 16. Nxe4 {[%clk 0:02:23.1]} 16... Nd7 {[%clk
0:03:01.7]} 17. h6 {[%clk 0:02:12.9]} 17... g6 {[%clk 0:03:03]} 18. Bf4 {[%clk
0:02:00.8]} 18... Nb6 {[%clk 0:02:58.2]} 19. Be5 {[%clk 0:01:52.8]} 19... Nd5
{[%clk 0:02:58.4]} 20. Bg7 {[%clk 0:01:44.1]} 20... Re8 {[%clk 0:02:58.8]} 21.
Re1 {[%clk 0:01:42.7]} 21... Nf4 {[%clk 0:02:39.4]} 22. Qf3 {[%clk 0:01:38.8]}
22... Nh5 {[%clk 0:02:02.7]} 23. Be5 {[%clk 0:01:23.2]} 23... Qd7 {[%clk
0:01:59.7]} 24. Rad1 {[%clk 0:01:02.2]} 24... Rad8 {[%clk 0:01:53.8]} 25. Bf1
{[%clk 0:00:55.1]} 25... b5 {[%clk 0:01:43.2]} 26. a4 {[%clk 0:00:52.1]} 26...
a6 {[%clk 0:01:43.6]} 27. Rc1 {[%clk 0:00:47.3]} 27... Qd5 {[%clk 0:01:40.9]}
28. Bg2 {[%clk 0:00:44.5]} 28... Qe6 {[%clk 0:00:33.9]} 29. h4 {[%clk
0:00:28.6]} 29... Qf5 {[%clk 0:00:25.9]} 30. Rxc6 {[%clk 0:00:25.1]} 30... f6
{[%clk 0:00:20.8]} 31. Qb3+ {[%clk 0:00:21.2]} 31... Kh8 {[%clk 0:00:19.8]} 32.
Bh3 {[%clk 0:00:21.9]} 32... bxa4 {[%clk 0:00:18.1]} 33. Qe3 {[%clk 0:00:15.7]}
33... fxe5 {[%clk 0:00:05.4]} 34. Bxf5 {[%clk 0:00:16.4]} 34... gxf5 {[%clk
0:00:06.6]} 35. Ng5 {[%clk 0:00:13.7]} 35... Bxg5 {[%clk 0:00:04.4]} 36. hxg5
{[%clk 0:00:15.6]} 36... Nf4 {[%clk 0:00:05.4]} 37. dxe5 {[%clk 0:00:13.5]}
37... Nd5 {[%clk 0:00:04.8]} 38. Qa7 {[%clk 0:00:12.1]} 38... Re7 {[%clk
0:00:04.4]} 39. Qc5 {[%clk 0:00:11.4]} 39... Ree8 {[%clk 0:00:03.3]} 40. e6
{[%clk 0:00:09.5]} 1-0

[Event "*** Titled Tuesday 3|2 Blitz"]
[Site "Chess.com"]
[Date "2015.12.01"]
[Round "4"]
[White "NguyenDucHoa"]
[Black "JustaTrickstar"]
[Result "1-0"]
[WhiteElo "2365"]
[BlackElo "2484"]
[TimeControl "180+2"]
[EndTime "11:51:18 PST"]
[Termination "NguyenDucHoa won by resignation"]

1. e4 {[%clk 0:02:57.8]} 1... c5 {[%clk 0:02:58.8]} 2. Nf3 {[%clk 0:02:58.5]}
2... Nc6 {[%clk 0:02:58.5]} 3. d4 {[%clk 0:02:58.6]} 3... cxd4 {[%clk
0:02:59.6]} 4. Nxd4 {[%clk 0:03:00.5]} 4... Nf6 {[%clk 0:03:00.6]} 5. Nc3 {[%clk
0:03:01.1]} 5... d6 {[%clk 0:03:01.5]} 6. Bg5 {[%clk 0:03:00.6]} 6... e6 {[%clk
0:02:58.6]} 7. Qd2 {[%clk 0:03:01.3]} 7... a6 {[%clk 0:02:59.4]} 8. O-O-O {[%clk
0:03:01.3]} 8... Qb6 {[%clk 0:03:00.3]} 9. Nb3 {[%clk 0:02:55.3]} 9... Be7
{[%clk 0:02:57.3]} 10. f4 {[%clk 0:02:52.3]} 10... Qc7 {[%clk 0:02:53.2]} 11. g4
{[%clk 0:02:43.2]} 11... h6 {[%clk 0:02:46.4]} 12. Bxf6 {[%clk 0:02:43.7]} 12...
gxf6 {[%clk 0:02:05.6]} 13. Kb1 {[%clk 0:02:36]} 13... b5 {[%clk 0:02:05.7]} 14.
Nd4 {[%clk 0:02:27.5]} 14... Bb7 {[%clk 0:02:04.3]} 15. a3 {[%clk 0:02:18.2]}
15... Nxd4 {[%clk 0:01:46]} 16. Qxd4 {[%clk 0:02:18.7]} 16... Qc5 {[%clk
0:01:46.4]} 17. Qd3 {[%clk 0:02:07.6]} 17... O-O-O {[%clk 0:01:41.7]} 18. Bg2
{[%clk 0:02:03.2]} 18... h5 {[%clk 0:01:39]} 19. h3 {[%clk 0:02:01.2]} 19... Qf2
{[%clk 0:01:05.2]} 20. Bf3 {[%clk 0:01:58.6]} 20... hxg4 {[%clk 0:00:56.9]} 21.
hxg4 {[%clk 0:02:00.5]} 21... Rxh1 {[%clk 0:00:53.3]} 22. Rxh1 {[%clk 0:02:01]}
22... Bf8 {[%clk 0:00:45.5]} 23. Rh7 {[%clk 0:01:58.8]} 23... Rd7 {[%clk
0:00:40.5]} 24. Rh8 {[%clk 0:01:54.4]} 24... Rd8 {[%clk 0:00:41.1]} 25. f5
{[%clk 0:01:49.5]} 25... Qc5 {[%clk 0:00:23.4]} 26. Rh7 {[%clk 0:01:41.3]} 26...
Rd7 {[%clk 0:00:23.9]} 27. Ne2 {[%clk 0:01:34.7]} 27... d5 {[%clk 0:00:18.1]}
28. fxe6 {[%clk 0:00:48.1]} 28... fxe6 {[%clk 0:00:20]} 29. Rxd7 {[%clk
0:00:46.7]} 29... Kxd7 {[%clk 0:00:21.9]} 30. exd5 {[%clk 0:00:44.6]} 30... Bxd5
{[%clk 0:00:22.3]} 31. Bxd5 {[%clk 0:00:36.5]} 31... Qxd5 {[%clk 0:00:21.4]} 32.
Qh7+ {[%clk 0:00:35.8]} 32... Kc6 {[%clk 0:00:19.5]} 33. Nc3 {[%clk 0:00:34.1]}
33... Qf3 {[%clk 0:00:16.2]} 34. Qf7 {[%clk 0:00:28.6]} 34... Qf1+ {[%clk
0:00:16.4]} 35. Ka2 {[%clk 0:00:29.1]} 35... Qc4+ {[%clk 0:00:17.4]} 36. Ka1
{[%clk 0:00:28.6]} 36... Bxa3 {[%clk 0:00:15.8]} 37. Qxf6 {[%clk 0:00:23.6]}
37... Bb4 {[%clk 0:00:14.6]} 38. g5 {[%clk 0:00:24.1]} 38... Bxc3 {[%clk
0:00:11.6]} 39. bxc3 {[%clk 0:00:25]} 39... b4 {[%clk 0:00:12.5]} 40. cxb4
{[%clk 0:00:19.9]} 40... Kb5 {[%clk 0:00:11.9]} 41. c3 {[%clk 0:00:18.7]} 41...
Ka4 {[%clk 0:00:11.8]} 42. Qd4 {[%clk 0:00:15.5]} 42... Qf1+ {[%clk 0:00:11.2]}
43. Kb2 {[%clk 0:00:16.7]} 43... Qe2+ {[%clk 0:00:12.5]} 44. Kc1 {[%clk
0:00:14.5]} 44... Ka3 {[%clk 0:00:10.6]} 45. Qd2 {[%clk 0:00:13.6]} 45... Qf1+
{[%clk 0:00:11.4]} 46. Kc2 {[%clk 0:00:12.3]} 46... Qf5+ {[%clk 0:00:12.1]} 47.
Kd1 {[%clk 0:00:13.5]} 47... Qf1+ {[%clk 0:00:13.2]} 48. Kc2 {[%clk 0:00:09.5]}
48... Qf5+ {[%clk 0:00:14]} 49. Kc1 {[%clk 0:00:07]} 49... Qf1+ {[%clk
0:00:14.1]} 50. Kc2 {[%clk 0:00:06.6]} 50... Qf5+ {[%clk 0:00:10.3]} 51. Kd1
{[%clk 0:00:06.6]} 51... Qf1+ {[%clk 0:00:11]} 52. Qe1 {[%clk 0:00:08]} 52...
Qd3+ {[%clk 0:00:12.1]} 53. Qd2 {[%clk 0:00:09.4]} 53... Qf1+ {[%clk 0:00:13]}
54. Kc2 {[%clk 0:00:10.7]} 54... Qf5+ {[%clk 0:00:13.8]} 55. Qd3 {[%clk
0:00:12.1]} 55... Qxg5 {[%clk 0:00:13.7]} 56. Qxa6+ {[%clk 0:00:12.7]} 1-0

[Event "*** Titled Tuesday 3|2 Blitz"]
[Site "Chess.com"]
[Date "2015.12.01"]
[Round "4"]
[White "LuckyTiger"]
[Black "motivated_bishop"]
[Result "1-0"]
[WhiteElo "2497"]
[BlackElo "2258"]
[TimeControl "180+2"]
[EndTime "11:51:57 PST"]
[Termination "LuckyTiger won by resignation"]

1. e4 {[%clk 0:03:01.9]} 1... e5 {[%clk 0:02:59.6]} 2. Nf3 {[%clk 0:03:02.7]}
2... Nc6 {[%clk 0:03:00.6]} 3. Bb5 {[%clk 0:03:03.5]} 3... a6 {[%clk 0:03:01.8]}
4. Ba4 {[%clk 0:03:04.5]} 4... Nf6 {[%clk 0:03:02.6]} 5. d3 {[%clk 0:03:05.8]}
5... b5 {[%clk 0:02:54.3]} 6. Bb3 {[%clk 0:03:06.7]} 6... Be7 {[%clk 0:02:31.4]}
7. a4 {[%clk 0:03:06.6]} 7... Bb7 {[%clk 0:02:31.7]} 8. O-O {[%clk 0:03:01.6]}
8... d6 {[%clk 0:02:25.2]} 9. Nc3 {[%clk 0:02:59.9]} 9... b4 {[%clk 0:02:12.1]}
10. Ne2 {[%clk 0:02:59.6]} 10... Na5 {[%clk 0:02:03]} 11. Ba2 {[%clk 0:03:00]}
11... c5 {[%clk 0:02:03.3]} 12. c3 {[%clk 0:02:51.8]} 12... O-O {[%clk
0:01:43.4]} 13. Ng3 {[%clk 0:02:23.8]} 13... Rb8 {[%clk 0:01:26]} 14. cxb4
{[%clk 0:01:40.7]} 14... cxb4 {[%clk 0:01:25.9]} 15. Bd2 {[%clk 0:01:42.3]}
15... d5 {[%clk 0:01:13.9]} 16. Nxe5 {[%clk 0:01:14]} 16... dxe4 {[%clk
0:01:09.6]} 17. dxe4 {[%clk 0:01:13.6]} 17... Nxe4 {[%clk 0:00:59.3]} 18. Nxe4
{[%clk 0:01:15.5]} 18... Bxe4 {[%clk 0:00:59.4]} 19. Qe2 {[%clk 0:00:43.2]}
19... Bd5 {[%clk 0:00:29.5]} 20. Bxd5 {[%clk 0:00:37.1]} 20... Qxd5 {[%clk
0:00:29.5]} 21. Rad1 {[%clk 0:00:38.7]} 21... Qe6 {[%clk 0:00:27.4]} 22. Rfe1
{[%clk 0:00:29.3]} 22... Bf6 {[%clk 0:00:28.3]} 23. Bf4 {[%clk 0:00:17.2]} 23...
Rfe8 {[%clk 0:00:19.9]} 24. Qf1 {[%clk 0:00:18.3]} 24... Qf5 {[%clk 0:00:19.2]}
25. Nd3 {[%clk 0:00:16.2]} 25... Rxe1 {[%clk 0:00:12]} 26. Qxe1 {[%clk
0:00:17.5]} 26... Rd8 {[%clk 0:00:12.5]} 27. Bc7 {[%clk 0:00:15.1]} 27... Rc8
{[%clk 0:00:09.8]} 28. Bxa5 {[%clk 0:00:13.8]} 28... Qxa5 {[%clk 0:00:10.9]} 29.
Qxb4 {[%clk 0:00:15.4]} 29... Qxb4 {[%clk 0:00:11.7]} 30. Nxb4 {[%clk
0:00:17.3]} 30... a5 {[%clk 0:00:08.9]} 31. Nd5 {[%clk 0:00:17.8]} 31... Rb8
{[%clk 0:00:05.9]} 32. Nxf6+ {[%clk 0:00:10]} 32... gxf6 {[%clk 0:00:07.8]} 33.
g3 {[%clk 0:00:11.7]} 33... Rxb2 {[%clk 0:00:08.7]} 34. Rd5 {[%clk 0:00:12.7]}
34... Ra2 {[%clk 0:00:07.1]} 35. Rxa5 {[%clk 0:00:13.8]} 35... Kg7 {[%clk
0:00:08.3]} 36. Kg2 {[%clk 0:00:15.5]} 36... Kg6 {[%clk 0:00:09.4]} 37. h4
{[%clk 0:00:16.9]} 37... h5 {[%clk 0:00:10]} 38. Kf3 {[%clk 0:00:16.5]} 38...
Ra3+ {[%clk 0:00:09.1]} 39. Kf4 {[%clk 0:00:17.7]} 39... Ra2 {[%clk 0:00:09.9]}
40. Ke3 {[%clk 0:00:18.3]} 40... Ra3+ {[%clk 0:00:10.9]} 41. Ke4 {[%clk
0:00:18.7]} 41... Ra2 {[%clk 0:00:11.6]} 42. f4 {[%clk 0:00:17.4]} 42... Ra3
{[%clk 0:00:12.7]} 43. Ra8 {[%clk 0:00:18]} 43... f5+ {[%clk 0:00:11.3]} 44. Ke5
{[%clk 0:00:18]} 44... Re3+ {[%clk 0:00:08.1]} 45. Kd5 {[%clk 0:00:18.3]} 45...
Kf6 {[%clk 0:00:06.9]} 46. a5 {[%clk 0:00:16.8]} 46... Rxg3 {[%clk 0:00:07]} 47.
Rc8 {[%clk 0:00:15.8]} 47... Ra3 {[%clk 0:00:05.6]} 48. Rc6+ {[%clk 0:00:15.4]}
48... Ke7 {[%clk 0:00:06.2]} 49. a6 {[%clk 0:00:16.8]} 49... Ra5+ {[%clk
0:00:04.8]} 50. Kc4 {[%clk 0:00:17.6]} 50... Kd7 {[%clk 0:00:04.7]} 51. Rh6
{[%clk 0:00:17.1]} 51... Ke7 {[%clk 0:00:04.2]} 52. Kb4 {[%clk 0:00:18.1]} 52...
Ra1 {[%clk 0:00:05.4]} 53. Kb5 {[%clk 0:00:16.3]} 53... f6 {[%clk 0:00:05.9]}
54. Kb6 {[%clk 0:00:16.5]} 54... Rb1+ {[%clk 0:00:07.3]} 55. Kc7 {[%clk
0:00:16.9]} 55... Rc1+ {[%clk 0:00:07.2]} 56. Kb7 {[%clk 0:00:18.4]} 56... Rb1+
{[%clk 0:00:08.5]} 57. Ka8 {[%clk 0:00:19.7]} 57... Ra1 {[%clk 0:00:04.5]} 58.
a7 {[%clk 0:00:20.5]} 58... Ke6 {[%clk 0:00:04.7]} 59. Rxh5 {[%clk 0:00:20.9]}
59... Ra4 {[%clk 0:00:03.6]} 60. Rh7 {[%clk 0:00:21.5]} 60... Kd5 {[%clk
0:00:04.5]} 61. Kb8 {[%clk 0:00:21.5]} 61... Ke4 {[%clk 0:00:05.2]} 62. a8=Q+
{[%clk 0:00:21.1]} 62... Rxa8+ {[%clk 0:00:06.4]} 63. Kxa8 {[%clk 0:00:22.8]}
63... Kxf4 {[%clk 0:00:07.9]} 64. Rg7 {[%clk 0:00:24.5]} 64... Ke3 {[%clk
0:00:07.8]} 65. h5 {[%clk 0:00:26.1]} 65... f4 {[%clk 0:00:09.4]} 66. h6 {[%clk
0:00:27.7]} 66... f3 {[%clk 0:00:11]} 67. Rg3 {[%clk 0:00:28.4]} 67... Ke2
{[%clk 0:00:09.9]} 68. h7 {[%clk 0:00:28.6]} 68... f2 {[%clk 0:00:11.4]} 69. Rg2
{[%clk 0:00:30.2]} 1-0

[Event "*** Titled Tuesday 3|2 Blitz"]
[Site "Chess.com"]
[Date "2015.12.01"]
[Round "4"]
[White "alexsuper1987"]
[Black "Colombiano07"]
[Result "0-1"]
[WhiteElo "2201"]
[BlackElo "2108"]
[TimeControl "180+2"]
[EndTime "11:52:01 PST"]
[Termination "Colombiano07 won by resignation"]

1. e4 {[%clk 0:03:01.9]} 1... g6 {[%clk 0:03:01.9]} 2. d4 {[%clk 0:03:01.3]}
2... Bg7 {[%clk 0:03:03.8]} 3. Nc3 {[%clk 0:03:02.4]} 3... c5 {[%clk 0:03:05]}
4. Nf3 {[%clk 0:03:00.7]} 4... cxd4 {[%clk 0:03:06]} 5. Nxd4 {[%clk 0:03:01.7]}
5... Nc6 {[%clk 0:03:07.6]} 6. Be3 {[%clk 0:03:02.9]} 6... Nf6 {[%clk
0:03:08.9]} 7. f3 {[%clk 0:03:02.7]} 7... O-O {[%clk 0:03:10]} 8. Bc4 {[%clk
0:03:03.2]} 8... Qb6 {[%clk 0:03:10.2]} 9. a3 {[%clk 0:03:03]} 9... e6 {[%clk
0:01:48.3]} 10. O-O {[%clk 0:03:02.5]} 10... Nxe4 {[%clk 0:01:43.1]} 11. Nf5
{[%clk 0:01:54.1]} 11... Qxb2 {[%clk 0:01:21.3]} 12. Nxe4 {[%clk 0:01:27.8]}
12... gxf5 {[%clk 0:01:14.2]} 13. Rb1 {[%clk 0:00:40.8]} 13... Qxa3 {[%clk
0:01:08.3]} 14. Bc5 {[%clk 0:00:37.7]} 14... Qa5 {[%clk 0:01:01.4]} 15. Bxf8
{[%clk 0:00:37.9]} 15... Kxf8 {[%clk 0:00:59.4]} 16. Qd6+ {[%clk 0:00:37.2]}
16... Kg8 {[%clk 0:00:58.3]} 17. Ng5 {[%clk 0:00:36.4]} 17... Qc3 {[%clk
0:00:45.8]} 18. Bd3 {[%clk 0:00:34.1]} 18... Qd4+ {[%clk 0:00:30.7]} 19. Qxd4
{[%clk 0:00:35.1]} 19... Bxd4+ {[%clk 0:00:32.2]} 20. Kh1 {[%clk 0:00:36.8]}
20... a5 {[%clk 0:00:28.4]} 21. g4 {[%clk 0:00:36.8]} 21... fxg4 {[%clk
0:00:25.5]} 22. fxg4 {[%clk 0:00:36.5]} 22... f6 {[%clk 0:00:26]} 23. Nxh7
{[%clk 0:00:34.6]} 23... Kg7 {[%clk 0:00:22.1]} 24. g5 {[%clk 0:00:34.7]} 24...
f5 {[%clk 0:00:22.2]} 25. Nf6 {[%clk 0:00:36]} 25... a4 {[%clk 0:00:19.6]} 26.
Ne8+ {[%clk 0:00:35.1]} 26... Kf8 {[%clk 0:00:19.5]} 27. Nc7 {[%clk 0:00:36.5]}
27... Ra5 {[%clk 0:00:20.6]} 28. Nb5 {[%clk 0:00:37.8]} 28... Bg7 {[%clk
0:00:19.4]} 29. Na3 {[%clk 0:00:38.3]} 29... Ne5 {[%clk 0:00:18.5]} 30. h4
{[%clk 0:00:38.9]} 30... Nxd3 {[%clk 0:00:19.6]} 31. cxd3 {[%clk 0:00:40.8]}
31... Bd4 {[%clk 0:00:15.9]} 32. h5 {[%clk 0:00:40.3]} 32... Kg7 {[%clk
0:00:14.7]} 33. Kg2 {[%clk 0:00:40.9]} 33... b6 {[%clk 0:00:15.1]} 34. Nc4
{[%clk 0:00:35.8]} 34... Bb7+ {[%clk 0:00:16.1]} 35. Kg3 {[%clk 0:00:37.4]}
35... Bd5 {[%clk 0:00:13.7]} 36. Nxa5 {[%clk 0:00:37.6]} 36... bxa5 {[%clk
0:00:13.2]} 37. Rb5 {[%clk 0:00:37.2]} 37... a3 {[%clk 0:00:13.1]} 38. Rxa5
{[%clk 0:00:37.6]} 38... a2 {[%clk 0:00:14.5]} 39. Kf4 {[%clk 0:00:36.9]} 39...
Kf7 {[%clk 0:00:12.1]} 40. h6 {[%clk 0:00:37.6]} 40... Kg6 {[%clk 0:00:12.7]}
41. Re1 {[%clk 0:00:38]} 41... Bc3 {[%clk 0:00:12.4]} 42. Rxa2 {[%clk
0:00:36.7]} 42... Bxa2 {[%clk 0:00:11.3]} 43. Re2 {[%clk 0:00:38.6]} 43... Bd5
{[%clk 0:00:11.6]} 44. Rh2 {[%clk 0:00:38.6]} 44... e5+ {[%clk 0:00:11.2]} 45.
Ke3 {[%clk 0:00:38.9]} 45... Bd4+ {[%clk 0:00:10.9]} 46. Kd2 {[%clk 0:00:40.1]}
46... Bg8 {[%clk 0:00:10.6]} 47. Rh1 {[%clk 0:00:35.6]} 47... Bh7 {[%clk
0:00:11.3]} 48. Rc1 {[%clk 0:00:29.6]} 48... Kxg5 {[%clk 0:00:11.2]} 49. Rc7
{[%clk 0:00:30.6]} 49... Kxh6 {[%clk 0:00:10.7]} 50. Rxd7 {[%clk 0:00:31.9]}
50... Bg6 {[%clk 0:00:12.3]} 51. Rd6 {[%clk 0:00:30.6]} 51... Kg5 {[%clk
0:00:13.5]} 52. Ke2 {[%clk 0:00:31.9]} 52... Bh5+ {[%clk 0:00:14.2]} 53. Kf1
{[%clk 0:00:32.7]} 53... Kf4 {[%clk 0:00:15.1]} 54. Rh6 {[%clk 0:00:33.9]} 54...
Bd1 {[%clk 0:00:15.6]} 55. Rh4+ {[%clk 0:00:34.6]} 55... Ke3 {[%clk 0:00:16.3]}
56. Rh3+ {[%clk 0:00:36.1]} 56... Kd2 {[%clk 0:00:17]} 57. Rg3 {[%clk
0:00:29.3]} 57... Be2+ {[%clk 0:00:17.5]} 58. Kg2 {[%clk 0:00:30.5]} 58... Bxd3
{[%clk 0:00:19.4]} 59. Rg5 {[%clk 0:00:30.6]} 59... f4 {[%clk 0:00:18]} 60. Kf3
{[%clk 0:00:31.5]} 60... Be2+ {[%clk 0:00:16.3]} 61. Ke4 {[%clk 0:00:32.1]}
61... f3 {[%clk 0:00:17.7]} 62. Rg8 {[%clk 0:00:10.8]} 62... f2 {[%clk
0:00:18.5]} 63. Rf8 {[%clk 0:00:12.1]} 63... f1=Q {[%clk 0:00:19.5]} 64. Rxf1
{[%clk 0:00:13.7]} 64... Bxf1 {[%clk 0:00:21.4]} 0-1